fUST/lending_fUST_20241025
["ID","MTS","AMOUNT","RATE_DAILY","PERIOD"]
[340807323,1729861846107,-1202.103708,0.00013972,2]
[340807325,1729861846117,-158.15883,0.00013972,2]
[340807327,1729861846128,-1202.103708,0.00013972,2]
[340807329,1729861846138,-1044.93,0.00013972,2]
[340807331,1729861846150,-1062.81,0.00013972,2]
[340807333,1729861846160,-500.0,0.00013972,2]
[340807335,1729861846171,-500.0,0.00013972,2]
[340807337,1729861846182,-251.085127,0.00013972,2]
[340807339,1729861846193,-251.085127,0.00013972,2]
[340807340,1729861846203,-789.03,0.00013972,2]
[340807341,1729861846214,-500.0,0.00013972,2]
[340807342,1729861846224,-616.25,0.00013972,2]
[340807343,1729861846235,-151.0,0.00013972,2]
[340807344,1729861846246,-769.26,0.00013972,2]
[340807345,1729861846257,-527.22,0.00013972,2]
[340807346,1729861846267,-500.0,0.00013972,2]
[340807347,1729861846278,-550.88,0.00013972,2]
[340807348,1729861846289,-500.0,0.00013972,2]
[340807349,1729861846299,-151.0,0.00013972,2]
[340807350,1729861846311,-608.32,0.00013972,2]
[340807351,1729861846322,-500.0,0.00013972,2]
[340807352,1729861846336,-151.0,0.00013972,2]
[340807353,1729861846348,-500.0,0.00013972,2]
[340807354,1729861846360,-500.0,0.00013972,2]
[340807355,1729861846374,-719.23,0.00013972,2]
[340807356,1729861846384,-500.0,0.00013972,2]
[340807357,1729861846395,-220.35049,0.00013972,2]
[340807358,1729861846405,-220.35049,0.00013972,2]
[340807359,1729861846416,-705.72,0.00013972,2]
[340807360,1729861846428,-220.35049,0.00013972,2]
[340807361,1729861846442,-220.35049,0.00013972,2]
[340807362,1729861846453,-996.16,0.00013972,2]
[340807363,1729861846465,-500.0,0.00013972,2]
[340807364,1729861846477,-500.0,0.00013972,2]
[340807365,1729861846487,-640.12,0.00013972,2]
[340807366,1729861846497,-648.11,0.00013972,2]
[340807367,1729861846507,-500.0,0.00013972,2]
[340807368,1729861846518,-500.0,0.00013972,2]
[340807369,1729861846529,-151.0,0.00013972,2]
[340807370,1729861846542,-151.0,0.00013972,2]
[340807371,1729861846552,-674.71,0.00013972,2]
[340807372,1729861846563,-617.39,0.00013972,2]
[340807373,1729861846573,-851.32,0.00013972,2]
[340807374,1729861846582,-151.0,0.00013972,2]
[340807375,1729861846592,-211.316615,0.00013972,2]
[340807376,1729861846601,-503.008388,0.00013972,2]
[340807377,1729861846611,-503.008388,0.00013972,2]
[340807378,1729861846621,-500.0,0.00013972,2]
[340807379,1729861846630,-500.0,0.00013972,2]
[340807380,1729861846640,-716.52,0.00013972,2]
[340807381,1729861846650,-1742.01,0.00013972,2]
[340807382,1729861846661,-352.013793,0.00013972,2]
[340807383,1729861846670,-352.013793,0.00013972,2]
[340807384,1729861846680,-500.0,0.00013972,2]
[340807385,1729861846689,-352.013793,0.00013972,2]
[340807386,1729861846698,-352.013793,0.00013972,2]
[340807387,1729861846708,-910.68,0.00013972,2]
[340807388,1729861846947,-1557.28,0.00013972,2]
[340807389,1729861846967,-295.120054,0.00013972,2]
[340807390,1729861846978,-295.120054,0.00013972,2]
[340807391,1729861846987,-295.120054,0.00013972,2]
[340807392,1729861846997,-295.120054,0.00013972,2]
[340807393,1729861847006,-500.0,0.00013972,2]
[340807394,1729861847017,-500.0,0.00013972,2]
[340807395,1729861847028,-670.16,0.00013972,2]
[340807396,1729861847038,-519.37,0.00013972,2]
[340807397,1729861847049,-878.92,0.00013972,2]
[340807398,1729861847062,-3181.69,0.00013972,2]
[340807399,1729861847072,-1566.75,0.00013972,2]
[340807400,1729861847081,-500.0,0.00013972,2]
[340807401,1729861847090,-535.47,0.00013972,2]
[340807402,1729861847099,-610.05,0.00013972,2]
[340807403,1729861847109,-453.982432,0.00013972,2]
[340807404,1729861847118,-500.0,0.00013972,2]
[340807405,1729861847127,-453.982432,0.00013972,2]
[340807406,1729861847136,-829.43,0.00013972,2]
[340807407,1729861847146,-500.0,0.00013972,2]
[340807408,1729861847156,-548.02,0.00013972,2]
[340807409,1729861847165,-500.0,0.00013972,2]
[340807410,1729861847175,-500.0,0.00013972,2]
[340807411,1729861847183,-453.982432,0.00013972,2]
[340807412,1729861847193,-453.982432,0.00013972,2]
[340807413,1729861847202,-152.67342,0.00013972,2]
[340807414,1729861847212,-152.67342,0.00013972,2]
[340807415,1729861847222,-968.65,0.00013972,2]
[340807416,1729861847231,-836.98,0.00013972,2]
[340807417,1729861847241,-152.67342,0.00013972,2]
[340807418,1729861847250,-152.67342,0.00013972,2]
[340807419,1729861847259,-715.225027,0.00013972,2]
[340807420,1729861847270,-715.225027,0.00013972,2]
[340807421,1729861847279,-500.0,0.00013972,2]
[340807422,1729861847288,-770.16,0.00013972,2]
[340807423,1729861847298,-715.225027,0.00013972,2]
[340807424,1729861847307,-715.225027,0.00013972,2]
[340807425,1729861847316,-848.97,0.00013972,2]
[340807426,1729861847325,-500.0,0.00013972,2]
[340807427,1729861847334,-151.0,0.00013972,2]
[340807428,1729861847343,-151.0,0.00013972,2]
[340807429,1729861847352,-1097.23,0.00013972,2]
[340807430,1729861847361,-585.65,0.00013972,2]
[340807431,1729861847371,-202.011715,0.00013972,2]
[340807432,1729861847380,-917.39,0.00013972,2]
[340807433,1729861847390,-500.0,0.00013972,2]
[340807434,1729861847399,-500.0,0.00013972,2]
[340807435,1729861847408,-669.44,0.00013972,2]
[340807436,1729861847419,-178.751232,0.00013972,2]
[340807437,1729861847428,-178.751232,0.00013972,2]
[340807438,1729861847438,-21158.21,0.00013972,2]
[340807439,1729861847448,-247.999507,0.00013972,2]
[340807440,1729861847458,-247.999507,0.00013972,2]
[340807441,1729861847467,-178.751232,0.00013972,2]
[340807442,1729861847477,-178.751232,0.00013972,2]
[340807443,1729861847487,-247.999507,0.00013972,2]
[340807444,1729861847496,-247.999507,0.00013972,2]
[340807445,1729861847506,-500.0,0.00013972,2]
[340807446,1729861847516,-500.0,0.00013972,2]
[340807447,1729861847526,-151.0,0.00013972,2]
[340807448,1729861847536,-151.0,0.00013972,2]
[340807449,1729861847546,-163.23582,0.00013972,2]
[340807450,1729861847557,-1085.49,0.00013972,2]
[340807451,1729861847569,-500.0,0.00013972,2]
[340807452,1729861847578,-1116.443501,0.00013972,2]
[340807453,1729861847588,-1116.443501,0.00013972,2]
[340807454,1729861847598,-797.93,0.00013972,2]
[340807455,1729861847607,-1116.443501,0.00013972,2]
[340807456,1729861847616,-1116.443501,0.00013972,2]
[340807457,1729861847626,-3681.66,0.00013972,2]
[340807458,1729861847635,-888.08,0.00013972,2]
[340807459,1729861847645,-500.0,0.00013972,2]
[340807460,1729861847654,-151.0,0.00013972,2]
[340807461,1729861847667,-151.0,0.00013972,2]
[340807462,1729861847677,-151.0,0.00013972,2]
[340807463,1729861847687,-278.365468,0.00013972,2]
[340807464,1729861847696,-500.0,0.00013972,2]
[340807465,1729861847706,-500.0,0.00013972,2]
[340807466,1729861847715,-500.0,0.00013972,2]
[340807467,1729861847725,-3414.25,0.00013972,2]
[340807468,1729861847735,-510.15,0.00013972,2]
[340807469,1729861847744,-262.341517,0.00013972,2]
[340807470,1729861847754,-262.341517,0.00013972,2]
[340807471,1729861847764,-3526.35,0.00013972,2]
[340807472,1729861847773,-986.55,0.00013972,2]
[340807473,1729861847782,-262.341517,0.00013972,2]
[340807474,1729861847791,-262.341517,0.00013972,2]
[340807475,1729861847801,-151.0,0.00013972,2]
[340807476,1729861847810,-227.085088,0.00013972,2]
[340807477,1729861847819,-227.085088,0.00013972,2]
[340807478,1729861847829,-500.0,0.00013972,2]
[340807479,1729861847840,-227.085088,0.00013972,2]
[340807480,1729861847850,-227.085088,0.00013972,2]
[340807481,1729861847860,-500.0,0.00013972,2]
[340807482,1729861847869,-1562.38,0.00013972,2]
[340807483,1729861847878,-500.0,0.00013972,2]
[340807484,1729861847888,-1484.1,0.00013972,2]
[340807485,1729861847897,-648.53,0.00013972,2]
[340807486,1729861847907,-151.0,0.00013972,2]
[340807487,1729861847917,-151.0,0.00013972,2]
[340807488,1729861847926,-151.0,0.00013972,2]
[340807489,1729861847936,-151.0,0.00013972,2]
[340807490,1729861847946,-1002.34,0.00013972,2]
[340807491,1729861847955,-1498.76,0.00013972,2]
[340807492,1729861847966,-363.94107079,0.00013972,2]
[340807493,1729861848007,-136.05892921,0.00013972,2]
[340807494,1729861848017,-815.22755579,0.00013972,2]
[340807495,1729862570332,-1000.0,0.00024,120]
[340807517,1729863032562,-1340.38245642,0.00012,2]
[340807518,1729863038658,-3744.61754358,0.00012,2]
[340807519,1729863038669,-169.777553,0.00013567,2]
[340807520,1729863038678,-156.99361091,0.00013588,2]
[340807521,1729863038688,-1000.0,0.00013598,2]
[340807522,1729863038699,-150.0,0.00013623,2]
[340807523,1729863038708,-500.0,0.00013673,2]
[340807524,1729863038717,-300.0,0.00013687,2]
[340807525,1729863038728,-244.7228279,0.00013688,2]
[340807526,1729863038738,-17218.37842772,0.00013688,2]
[340807529,1729863040684,-501.98208771,0.00013688,2]
[340807530,1729863040698,-66007.20631057,0.00013688,2]
[340807531,1729863040708,-7737.26977332,0.00013688,2]
[340807532,1729863040718,-500.0,0.00013698,2]
[340807533,1729863040728,-500.0,0.00013698,2]
[340807534,1729863040738,-500.0,0.00013698,2]
[340807535,1729863040747,-704.99,0.00013698,2]
[340807536,1729863040759,-500.0,0.00013698,2]
[340807537,1729863040769,-544.47,0.00013698,2]
[340807538,1729863040778,-500.0,0.00013698,2]
[340807539,1729863040787,-500.0,0.00013698,2]
[340807540,1729863040797,-215.86325002,0.00013698,2]
[340807541,1729863040807,-500.0,0.00013698,2]
[340807542,1729863040816,-536.55,0.00013698,2]
[340807543,1729863040825,-372.6,0.00013698,2]
[340807544,1729863040834,-581.56,0.00013698,2]
[340807545,1729863040844,-512.24,0.00013698,2]
[340807546,1729863040854,-500.0,0.00013698,2]
[340807547,1729863040864,-500.0,0.00013698,2]
[340807548,1729863040873,-524.82069658,0.00013698,2]
[340807549,1729863040882,-672.72,0.00013698,2]
[340807550,1729863040893,-525.99,0.00013698,2]
[340807551,1729863040903,-500.0,0.00013698,2]
[340807552,1729863040911,-500.0,0.00013698,2]
[340807553,1729863040921,-500.0,0.00013698,2]
[340807554,1729863040931,-659.29,0.00013698,2]
[340807555,1729863040941,-500.0,0.00013698,2]
[340807556,1729863040952,-693.34,0.00013698,2]
[340807557,1729863040961,-586.77,0.00013698,2]
[340807558,1729863040970,-500.0,0.00013698,2]
[340807559,1729863040980,-957.85,0.00013698,2]
[340807560,1729863040989,-500.0,0.00013698,2]
[340807561,1729863041001,-618.48,0.00013698,2]
[340807562,1729863041011,-705.16,0.00013698,2]
[340807563,1729863041021,-500.0,0.00013698,2]
[340807564,1729863041031,-500.0,0.00013698,2]
[340807565,1729863041040,-780.38,0.00013698,2]
[340807566,1729863041049,-500.0,0.00013698,2]
[340807567,1729863041059,-500.0,0.00013698,2]
[340807568,1729863041069,-834.79,0.00013698,2]
[340807569,1729863041079,-967.75,0.00013698,2]
[340807570,1729863041088,-500.0,0.00013698,2]
[340807571,1729863041097,-500.27,0.00013698,2]
[340807572,1729863041107,-500.0,0.00013698,2]
[340807573,1729863041116,-500.0,0.00013698,2]
[340807574,1729863041125,-500.0,0.00013698,2]
[340807575,1729863041134,-517.0,0.00013698,2]
[340807576,1729863041143,-824.86,0.00013698,2]
[340807577,1729863041153,-500.0,0.00013698,2]
[340807578,1729863041162,-500.0,0.00013698,2]
[340807579,1729863041171,-500.0,0.00013698,2]
[340807580,1729863041181,-500.0,0.00013698,2]
[340807581,1729863041191,-644.99,0.00013698,2]
[340807582,1729863041201,-926.1,0.00013698,2]
[340807583,1729863041213,-500.0,0.00013698,2]
[340807584,1729863041223,-500.0,0.00013698,2]
[340807585,1729863041235,-500.0,0.00013698,2]
[340807586,1729863041244,-760.84,0.00013698,2]
[340807587,1729863041255,-1828.81,0.00013698,2]
[340807588,1729863041266,-1658.18,0.00013698,2]
[340807589,1729863041275,-1515.81,0.00013698,2]
[340807590,1729863041285,-940.25,0.00013698,2]
[340807591,1729863041294,-904.34,0.00013698,2]
[340807592,1729863041304,-723.49,0.00013698,2]
[340807593,1729863041313,-500.0,0.00013698,2]
[340807594,1729863041323,-594.49,0.00013698,2]
[340807595,1729863041332,-500.0,0.00013698,2]
[340807596,1729863041342,-500.0,0.00013698,2]
[340807597,1729863041351,-500.0,0.00013698,2]
[340807598,1729863041361,-500.0,0.00013698,2]
[340807599,1729863041370,-500.0,0.00013698,2]
[340807600,1729863041379,-643.97,0.00013698,2]
[340807601,1729863041390,-876.31,0.00013698,2]
[340807602,1729863041399,-723.28,0.00013698,2]
[340807603,1729863041409,-888.81,0.00013698,2]
[340807604,1729863041419,-500.0,0.00013698,2]
[340807605,1729863041428,-823.1,0.00013698,2]
[340807606,1729863041437,-500.0,0.00013698,2]
[340807607,1729863041446,-500.0,0.00013698,2]
[340807608,1729863041456,-572.22,0.00013698,2]
[340807609,1729863041465,-416.40721576,0.00013698,2]
[340807610,1729863041475,-974.24,0.00013698,2]
[340807611,1729863041484,-557.62,0.00013698,2]
[340807612,1729863041494,-500.0,0.00013698,2]
[340807613,1729863041505,-597.1,0.00013698,2]
[340807614,1729863041514,-564.9,0.00013698,2]
[340807615,1729863041524,-913.15,0.00013698,2]
[340807616,1729863041533,-500.0,0.00013698,2]
[340807617,1729863041543,-500.0,0.00013698,2]
[340807618,1729863041552,-504.98,0.00013698,2]
[340807619,1729863041562,-594.11,0.00013698,2]
[340807620,1729863041572,-565.94,0.00013698,2]
[340807621,1729863041582,-500.0,0.00013698,2]
[340807622,1729863041592,-646.91,0.00013698,2]
[340807623,1729863041601,-500.0,0.00013698,2]
[340807624,1729863041611,-1596.84,0.00013698,2]
[340807625,1729863041622,-500.0,0.00013698,2]
[340807626,1729863041634,-500.0,0.00013698,2]
[340807627,1729863041645,-1427.5,0.00013698,2]
[340807628,1729863041858,-642.24,0.00013698,2]
[340807629,1729863041867,-686.66,0.00013698,2]
[340807630,1729863041877,-842.3,0.00013698,2]
[340807631,1729863041886,-500.0,0.00013698,2]
[340807632,1729863041895,-584.64,0.00013698,2]
[340807633,1729863041905,-928.29,0.00013698,2]
[340807634,1729863041914,-813.6,0.00013698,2]
[340807635,1729863041923,-500.0,0.00013698,2]
[340807636,1729863041933,-500.0,0.00013698,2]
[340807637,1729863041942,-552.22,0.00013698,2]
[340807638,1729863041952,-1051.52,0.00013698,2]
[340807639,1729863041962,-500.0,0.00013698,2]
[340807640,1729863041971,-500.0,0.00013698,2]
[340807641,1729863041980,-500.0,0.00013698,2]
[340807642,1729863041990,-1501.47,0.00013698,2]
[340807643,1729863042001,-397.13517096,0.00013698,2]
[340807644,1729863042012,-500.0,0.00013698,2]
[340807645,1729863042023,-500.0,0.00013698,2]
[340807646,1729863042034,-500.0,0.00013698,2]
[340807647,1729863042044,-500.0,0.00013698,2]
[340807648,1729863042056,-802.11,0.00013698,2]
[340807649,1729863042065,-909.85,0.00013698,2]
[340807650,1729863042074,-1040.26,0.00013698,2]
[340807651,1729863042083,-500.0,0.00013698,2]
[340807652,1729863042094,-561.24,0.00013698,2]
[340807653,1729863042103,-738.07,0.00013698,2]
[340807654,1729863042112,-20276.62,0.00013698,2]
[340807655,1729863042121,-500.0,0.00013698,2]
[340807656,1729863042133,-641.54,0.00013698,2]
[340807657,1729863042145,-500.0,0.00013698,2]
[340807658,1729863042154,-178.46023533,0.00013698,2]
[340807659,1729863042163,-500.0,0.00013698,2]
[340807660,1729863042172,-879.17,0.00013698,2]
[340807661,1729863042181,-500.0,0.00013698,2]
[340807662,1729863042191,-500.0,0.00013698,2]
[340807663,1729863042199,-3528.26,0.00013698,2]
[340807664,1729863042210,-764.68,0.00013698,2]
[340807665,1729863042221,-500.0,0.00013698,2]
[340807666,1729863042231,-851.07,0.00013698,2]
[340807667,1729863042242,-500.0,0.00013698,2]
[340807668,1729863042253,-1497.28,0.00013698,2]
[340807669,1729863042261,-500.0,0.00013698,2]
[340807670,1729863042271,-3271.99,0.00013698,2]
[340807671,1729863042280,-1422.26,0.00013698,2]
[340807672,1729863042289,-500.0,0.00013698,2]
[340807673,1729863042299,-500.0,0.00013698,2]
[340807674,1729863042308,-3379.42,0.00013698,2]
[340807675,1729863042318,-375.0,0.00013698,2]
[340807676,1729863042327,-501.08,0.00013698,2]
[340807677,1729863042336,-1279.94,0.00013698,2]
[340807678,1729863042346,-1436.32,0.00013698,2]
[340807679,1729863042355,-500.0,0.00013698,2]
[340807680,1729863042365,-500.0,0.00013698,2]
[340807681,1729863042374,-500.0,0.00013698,2]
[340807682,1729863042383,-500.0,0.00013698,2]
[340807683,1729863042392,-500.0,0.00013698,2]
[340807684,1729863042402,-960.58,0.00013698,2]
[340807685,1729863042411,-500.0,0.00013698,2]
[340807686,1729863042421,-500.0,0.00013698,2]
[340807687,1729863042430,-500.0,0.00013698,2]
[340807688,1729863042439,-1351.5,0.00013698,2]
[340807689,1729863042448,-933.72,0.00013698,2]
[340807690,1729863042458,-500.0,0.00013698,2]
[340807691,1729863042467,-503.82564163,0.00013698,2]
[340807692,1729863042476,-813.38,0.00013698,2]
[340807693,1729863042485,-669.36,0.00013698,2]
[340807694,1729863042495,-500.0,0.00013698,2]
[340807695,1729863042506,-500.0,0.00013698,2]
[340807696,1729863042516,-500.0,0.00013698,2]
[340807697,1729863042525,-644.97,0.00013698,2]
[340807698,1729863042535,-500.0,0.00013698,2]
[340807699,1729863042544,-500.0,0.00013698,2]
[340807700,1729863042553,-2271.04,0.00013698,2]
[340807701,1729863042563,-500.0,0.00013698,2]
[340807702,1729863042572,-1033.17,0.00013698,2]
[340807703,1729863042581,-5553.78,0.00013698,2]
[340807704,1729863042590,-1062.52,0.00013698,2]
[340807705,1729863042600,-6747.09,0.00013698,2]
[340807706,1729863042611,-500.0,0.00013698,2]
[340807707,1729863042621,-500.0,0.00013698,2]
[340807708,1729863042631,-500.0,0.00013698,2]
[340807709,1729863042642,-1644.86,0.00013698,2]
[340807710,1729863042652,-10977.84,0.00013698,2]
[340807711,1729863042667,-665.16,0.00013698,2]
[340807712,1729863042677,-500.0,0.00013698,2]
[340807713,1729863042688,-1003.51,0.00013698,2]
[340807714,1729863042700,-3134.57,0.00013698,2]
[340807715,1729863042709,-500.0,0.00013698,2]
[340807716,1729863042720,-2975.45,0.00013698,2]
[340807717,1729863042731,-726.72,0.00013698,2]
[340807718,1729863042740,-500.0,0.00013698,2]
[340807719,1729863042751,-4014.21,0.00013698,2]
[340807720,1729863042762,-1224.17,0.00013698,2]
[340807721,1729863042772,-797.87,0.00013698,2]
[340807722,1729863042781,-500.0,0.00013698,2]
[340807723,1729863042790,-500.0,0.00013698,2]
[340807724,1729863042799,-1320.09,0.00013698,2]
[340807725,1729863042808,-3378.86,0.00013698,2]
[340807726,1729863042818,-1073.49,0.00013698,2]
[340807727,1729863042827,-500.0,0.00013698,2]
[340807728,1729863042837,-500.0,0.00013698,2]
[340807729,1729863042846,-500.0,0.00013698,2]
[340807730,1729863042855,-282.95953521,0.00013698,2]
[340807731,1729863042865,-689.81,0.00013698,2]
[340807732,1729863042874,-1413.75,0.00013698,2]
[340807733,1729863042883,-1000.89,0.00013698,2]
[340807734,1729863042892,-651.35,0.00013698,2]
[340807735,1729863042901,-794.87,0.00013698,2]
[340807736,1729863042910,-3049.12,0.00013698,2]
[340807737,1729863042920,-1217.679311,0.00013699,2]
[340807738,1729863042930,-6105.337922,0.00013699,2]
[340807739,1729863042941,-156.99361091,0.0001372,2]
[340807740,1729863042952,-150.0,0.00013833,2]
[340807741,1729863042962,-156.99361091,0.00013852,2]
[340807742,1729863042971,-20931.8917065,0.00013889,2]
[340807743,1729863042981,-1934.31744333,0.00013889,2]
[340807744,1729863042990,-3649.44857965,0.00013899,2]
[340807745,1729863043001,-150.0,0.000139,2]
[340807746,1729863043013,-4689.94723024,0.00013942,2]
[340807747,1729863043029,-7104.81406439,0.00013942,2]
[340807756,1729863043878,-1682.16,0.00013698,2]
[340807757,1729863043888,-500.0,0.00013698,2]
[340807758,1729863043898,-7314.01983969,0.00013942,2]
[340807770,1729863046638,-500.0,0.00013698,2]
[340807771,1729863046649,-537.86,0.00013698,2]
[340807772,1729863046662,-1823.11057218,0.00013942,2]
[340807773,1729863046671,-1934.31744333,0.00013942,2]
[340807774,1729863046681,-590.71198451,0.00013952,2]
[340807808,1729864237866,-647.57576,0.00013151,2]
[340807915,1729864239884,-4191.42095164,0.00013151,2]
[340807916,1729864239893,-155.006,0.0001323,2]
[340807917,1729864239903,-300.0,0.00013556,2]
[340807918,1729864239913,-7386.88469002,0.00013557,2]
[340807919,1729864239923,-156.99361091,0.00013588,2]
[340807920,1729864239933,-156.99361091,0.00013598,2]
[340807921,1729864239943,-1000.0,0.00013598,2]
[340807922,1729864239958,-150.0,0.00013649,2]
[340807923,1729864239968,-1157.0,0.00013649,2]
[340807924,1729864239978,-1419.68,0.00013649,2]
[340807925,1729864239988,-500.0,0.00013673,2]
[340807926,1729864239997,-500.28355097,0.00013673,2]
[340807927,1729864240007,-163.14855193,0.00013678,2]
[340807928,1729864240017,-25034.2892223,0.00013678,2]
[340807929,1729864240026,-8872.82467743,0.00013678,2]
[340807930,1729864240036,-100137.156889,0.00013688,2]
[340807931,1729864240046,-35491.2987097,0.00013688,2]
[340807932,1729864240056,-25034.2892223,0.00013689,2]
[340807933,1729864240065,-8872.82467743,0.00013689,2]
[340807934,1729864240075,-500.0,0.00013698,2]
[340807935,1729864240085,-554.79115601,0.00013698,2]
[340807936,1729864240094,-500.0,0.00013698,2]
[340807937,1729864240104,-500.0,0.00013698,2]
[340807938,1729864240114,-620.83,0.00013698,2]
[340807939,1729864240123,-500.0,0.00013698,2]
[340807940,1729864240134,-837.96,0.00013698,2]
[340807941,1729864240146,-500.0,0.00013698,2]
[340807942,1729864240155,-500.0,0.00013698,2]
[340807943,1729864240165,-500.0,0.00013698,2]
[340807944,1729864240174,-547.98,0.00013698,2]
[340807945,1729864240185,-500.0,0.00013698,2]
[340807946,1729864240195,-500.0,0.00013698,2]
[340807947,1729864240209,-500.0,0.00013698,2]
[340807948,1729864240219,-500.0,0.00013698,2]
[340807949,1729864240230,-500.0,0.00013698,2]
[340807950,1729864240240,-500.0,0.00013698,2]
[340807951,1729864240249,-500.0,0.00013698,2]
[340807952,1729864240259,-535.43,0.00013698,2]
[340807953,1729864240269,-500.0,0.00013698,2]
[340807954,1729864240278,-500.0,0.00013698,2]
[340807955,1729864240288,-510.11,0.00013698,2]
[340807956,1729864240297,-500.0,0.00013698,2]
[340807957,1729864240306,-500.0,0.00013698,2]
[340807958,1729864240315,-986.48,0.00013698,2]
[340807959,1729864240325,-649.71,0.00013698,2]
[340807960,1729864240335,-500.0,0.00013698,2]
[340807961,1729864240344,-500.0,0.00013698,2]
[340807962,1729864240355,-500.0,0.00013698,2]
[340807963,1729864240365,-500.0,0.00013698,2]
[340807964,1729864240374,-500.0,0.00013698,2]
[340807965,1729864240387,-415.6519427,0.00013698,2]
[340807966,1729864240396,-400.0,0.00013698,2]
[340807967,1729864240406,-500.0,0.00013698,2]
[340807968,1729864240416,-500.0,0.00013698,2]
[340807969,1729864240426,-500.0,0.00013698,2]
[340807970,1729864240435,-500.0,0.00013698,2]
[340807971,1729864240444,-500.0,0.00013698,2]
[340807972,1729864240461,-500.0,0.00013698,2]
[340807973,1729864240471,-500.0,0.00013698,2]
[340807974,1729864240481,-500.0,0.00013698,2]
[340807975,1729864240491,-699.91,0.00013698,2]
[340807976,1729864240500,-500.0,0.00013698,2]
[340807977,1729864240510,-500.0,0.00013698,2]
[340807978,1729864240520,-649.24,0.00013698,2]
[340807979,1729864240529,-894.61,0.00013698,2]
[340807980,1729864240539,-621.93,0.00013698,2]
[340807981,1729864240549,-500.0,0.00013698,2]
[340807982,1729864240558,-500.0,0.00013698,2]
[340807983,1729864240568,-500.0,0.00013698,2]
[340807984,1729864240578,-500.0,0.00013698,2]
[340807985,1729864240587,-500.0,0.00013698,2]
[340807986,1729864240597,-556.91880282,0.00013698,2]
[340807987,1729864240607,-1688.39,0.00013698,2]
[340807988,1729864240617,-500.0,0.00013698,2]
[340807989,1729864240627,-500.0,0.00013698,2]
[340807990,1729864240636,-1057.64,0.00013698,2]
[340807991,1729864240646,-500.0,0.00013698,2]
[340807992,1729864240655,-524.35,0.00013698,2]
[340807993,1729864240665,-563.96,0.00013698,2]
[340807994,1729864240674,-603.51,0.00013698,2]
[340807995,1729864240684,-546.74,0.00013698,2]
[340807996,1729864240693,-530.23,0.00013698,2]
[340807997,1729864240707,-500.0,0.00013698,2]
[340807998,1729864240717,-994.36,0.00013698,2]
[340807999,1729864240727,-500.0,0.00013698,2]
[340808000,1729864240738,-831.51,0.00013698,2]
[340808001,1729864240747,-956.7,0.00013698,2]
[340808002,1729864240757,-500.0,0.00013698,2]
[340808003,1729864240766,-497.85515958,0.00013698,2]
[340808004,1729864240776,-500.0,0.00013698,2]
[340808005,1729864240786,-500.0,0.00013698,2]
[340808006,1729864240797,-522.82,0.00013698,2]
[340808007,1729864240806,-1012.12,0.00013698,2]
[340808008,1729864240815,-1758.45,0.00013698,2]
[340808009,1729864240826,-704.9,0.00013698,2]
[340808010,1729864240836,-2034.12,0.00013698,2]
[340808011,1729864240845,-500.0,0.00013698,2]